[Event "Live Chess"]
[Site "Chess.com"]
[Date "2023.05.20"]
[Round "-"]
[White "lHolyDiverl"]
[Black "chessfiction"]
[Result "0-1"]
[WhiteElo "560"]
[BlackElo "2412"]
[TimeControl "300"]
[EndTime "12:05:37 PDT"]
[Termination "chessfiction won on time"]

1. d4 {[%clk 0:04:53.1]} 1... Nf6 {[%clk 0:04:58]} 2. Nc3 {[%clk 0:04:52.4]}
2... d5 {[%clk 0:04:56.8]} 3. Bf4 {[%clk 0:04:50.6]} 3... Bf5 {[%clk 0:04:51.4]}
4. e3 {[%clk 0:04:47.9]} 4... e6 {[%clk 0:04:49.9]} 5. Nf3 {[%clk 0:04:42.9]}
5... Bb4 {[%clk 0:04:47.1]} 6. a3 {[%clk 0:04:25.6]} 6... Bxc3+ {[%clk
0:04:38.8]} 7. bxc3 {[%clk 0:04:22.9]} 7... Ne4 {[%clk 0:04:38.7]} 8. Bd3 {[%clk
0:04:10.8]} 8... Nxc3 {[%clk 0:04:36.7]} 9. Qd2 {[%clk 0:04:03.2]} 9... Ne4
{[%clk 0:04:29]} 10. Bxe4 {[%clk 0:03:39]} 10... dxe4 {[%clk 0:04:28.9]} 11. Ne5
{[%clk 0:03:19.7]} 11... O-O {[%clk 0:04:27.1]} 12. O-O {[%clk 0:02:58.9]} 12...
f6 {[%clk 0:04:24.7]} 13. Nc4 {[%clk 0:02:52.5]} 13... b5 {[%clk 0:04:20.5]} 14.
Na5 {[%clk 0:02:36.4]} 14... e5 {[%clk 0:04:16.8]} 15. Bg3 {[%clk 0:02:27.7]}
15... c5 {[%clk 0:04:12.7]} 16. Nb7 {[%clk 0:02:17.8]} 16... Qb6 {[%clk
0:04:06.2]} 17. Nxc5 {[%clk 0:02:12.4]} 17... Rd8 {[%clk 0:04:05.5]} 18. Nb3
{[%clk 0:02:04.1]} 18... Nc6 {[%clk 0:04:02]} 19. d5 {[%clk 0:01:56.2]} 19...
Be6 {[%clk 0:03:40.7]} 20. a4 {[%clk 0:00:52.4]} 20... Rxd5 {[%clk 0:03:36.4]}
21. Qc3 {[%clk 0:00:31.2]} 21... b4 {[%clk 0:03:34.4]} 22. Qe1 {[%clk
0:00:19.7]} 22... a5 {[%clk 0:03:33.3]} 23. Rd1 {[%clk 0:00:16]} 23... Rad8
{[%clk 0:03:31.9]} 24. Qe2 {[%clk 0:00:09.6]} 24... Rxd1 {[%clk 0:03:26.7]} 25.
Rxd1 {[%clk 0:00:08.4]} 25... Rxd1+ {[%clk 0:03:26.6]} 26. Qxd1 {[%clk
0:00:07.4]} 26... Qd8 {[%clk 0:03:26.5]} 27. Qxd8+ {[%clk 0:00:04.8]} 27... Nxd8
{[%clk 0:03:26.4]} 28. Nc5 {[%clk 0:00:03.6]} 28... Bc4 {[%clk 0:03:25.7]} 0-1

[Event "Live Chess"]
[Site "Chess.com"]
[Date "2023.05.20"]
[Round "-"]
[White "Enhard"]
[Black "Bot_Boy"]
[Result "1-0"]
[WhiteElo "1453"]
[BlackElo "332"]
[TimeControl "300"]
[EndTime "12:05:55 PDT"]
[Termination "Enhard won by checkmate"]

1. d4 {[%clk 0:04:58.1]} 1... g6 {[%clk 0:04:54.6]} 2. Bf4 {[%clk 0:04:52.2]}
2... d6 {[%clk 0:04:44.9]} 3. e3 {[%clk 0:04:50.5]} 3... Nf6 {[%clk 0:04:42.3]}
4. Be2 {[%clk 0:04:49]} 4... Bg4 {[%clk 0:04:36]} 5. Bxg4 {[%clk 0:04:46.6]}
5... h5 {[%clk 0:04:25.3]} 6. Be2 {[%clk 0:04:43.1]} 6... Ne4 {[%clk 0:04:19.3]}
7. Nd2 {[%clk 0:04:37.6]} 7... f5 {[%clk 0:04:12.4]} 8. Nxe4 {[%clk 0:04:26.9]}
8... fxe4 {[%clk 0:04:11.1]} 9. f3 {[%clk 0:04:20.4]} 9... Nd7 {[%clk
0:04:05.4]} 10. fxe4 {[%clk 0:04:17.3]} 10... Nf6 {[%clk 0:04:02.9]} 11. h3
{[%clk 0:04:13.7]} 11... Nxe4 {[%clk 0:03:57.5]} 12. Nf3 {[%clk 0:04:08.5]}
12... e6 {[%clk 0:03:24.2]} 13. O-O {[%clk 0:04:04.9]} 13... Be7 {[%clk
0:03:19.8]} 14. Bd3 {[%clk 0:04:00.5]} 14... d5 {[%clk 0:03:07.5]} 15. Bxe4
{[%clk 0:03:58.3]} 15... dxe4 {[%clk 0:03:05.4]} 16. Ne5 {[%clk 0:03:56.9]}
16... g5 {[%clk 0:02:37.7]} 17. Bh2 {[%clk 0:03:50.1]} 17... Rf8 {[%clk
0:01:58.6]} 18. Qxh5+ {[%clk 0:03:46.6]} 18... Rf7 {[%clk 0:01:53.7]} 19. Qxf7#
{[%clk 0:03:45.6]} 1-0

[Event "Live Chess"]
[Site "Chess.com"]
[Date "2023.05.20"]
[Round "-"]
[White "mattlirious"]
[Black "WilliamofOrange16th"]
[Result "1/2-1/2"]
[WhiteElo "1316"]
[BlackElo "1865"]
[TimeControl "300"]
[EndTime "12:05:56 PDT"]
[Termination "Game drawn by stalemate"]

1. e4 {[%clk 0:04:59.1]} 1... d6 {[%clk 0:04:59.1]} 2. d4 {[%clk 0:04:57.8]}
2... Nf6 {[%clk 0:04:58.2]} 3. Nc3 {[%clk 0:04:56.3]} 3... Nbd7 {[%clk
0:04:56.9]} 4. Bc4 {[%clk 0:04:55.6]} 4... e5 {[%clk 0:04:55.9]} 5. dxe5 {[%clk
0:04:54]} 5... dxe5 {[%clk 0:04:54.6]} 6. Nf3 {[%clk 0:04:52.4]} 6... Be7 {[%clk
0:04:53.5]} 7. Bg5 {[%clk 0:04:47.8]} 7... c6 {[%clk 0:04:50.8]} 8. O-O {[%clk
0:04:45.9]} 8... O-O {[%clk 0:04:49.7]} 9. Qd3 {[%clk 0:04:29.9]} 9... Qc7
{[%clk 0:04:47.6]} 10. Bxf6 {[%clk 0:04:26.2]} 10... Nxf6 {[%clk 0:04:39.6]} 11.
Ne2 {[%clk 0:04:19.1]} 11... b5 {[%clk 0:04:38]} 12. Bb3 {[%clk 0:04:13.8]}
12... a5 {[%clk 0:04:36.5]} 13. a4 {[%clk 0:04:12]} 13... Rb8 {[%clk 0:04:06.7]}
14. Qc3 {[%clk 0:03:58.9]} 14... Bd6 {[%clk 0:03:59.8]} 15. axb5 {[%clk
0:03:56.1]} 15... cxb5 {[%clk 0:03:58.9]} 16. Qxc7 {[%clk 0:03:50.5]} 16... Bxc7
{[%clk 0:03:58.8]} 17. Nc3 {[%clk 0:03:47.5]} 17... Be6 {[%clk 0:03:27.4]} 18.
Bxe6 {[%clk 0:03:41.7]} 18... fxe6 {[%clk 0:03:27.3]} 19. Rfd1 {[%clk
0:03:35.8]} 19... h6 {[%clk 0:03:03.3]} 20. Nd2 {[%clk 0:03:19.9]} 20... Kf7
{[%clk 0:02:52.7]} 21. Ne2 {[%clk 0:03:07.6]} 21... Bb6 {[%clk 0:02:43.9]} 22.
Ng3 {[%clk 0:03:06.1]} 22... Rfc8 {[%clk 0:02:34.7]} 23. c3 {[%clk 0:03:04.3]}
23... Rd8 {[%clk 0:02:31]} 24. Kf1 {[%clk 0:03:02.2]} 24... Rd7 {[%clk
0:02:24.2]} 25. f3 {[%clk 0:02:58.8]} 25... Rbd8 {[%clk 0:02:22.9]} 26. Ke2
{[%clk 0:02:54]} 26... a4 {[%clk 0:02:18.2]} 27. c4 {[%clk 0:02:40]} 27... Ba5
{[%clk 0:02:09.2]} 28. Ngf1 {[%clk 0:02:25.8]} 28... Rb7 {[%clk 0:01:57.2]} 29.
cxb5 {[%clk 0:02:06.2]} 29... Rxb5 {[%clk 0:01:57.1]} 30. Nc4 {[%clk 0:02:03.1]}
30... Rxd1 {[%clk 0:01:46]} 31. Kxd1 {[%clk 0:01:44.3]} 31... Bc7 {[%clk
0:01:41.2]} 32. Rxa4 {[%clk 0:01:39.9]} 32... Nd7 {[%clk 0:01:35.2]} 33. Nfd2
{[%clk 0:01:34.9]} 33... Kf6 {[%clk 0:01:31.1]} 34. Ra7 {[%clk 0:01:29.5]} 34...
Rc5 {[%clk 0:01:30.2]} 35. b4 {[%clk 0:01:25.3]} 35... Rc6 {[%clk 0:01:28.7]}
36. b5 {[%clk 0:01:23.4]} 36... Rc5 {[%clk 0:01:27.5]} 37. Rb7 {[%clk
0:01:15.1]} 37... Ke7 {[%clk 0:01:16.5]} 38. b6 {[%clk 0:01:05.9]} 38... Bb8
{[%clk 0:01:10.1]} 39. Ke2 {[%clk 0:00:47.4]} 39... Kd8 {[%clk 0:01:09.2]} 40.
Kd3 {[%clk 0:00:40.3]} 40... Kc8 {[%clk 0:01:08]} 41. Nb3 {[%clk 0:00:39.6]}
41... Kxb7 {[%clk 0:01:02.6]} 42. Nba5+ {[%clk 0:00:30.8]} 42... Ka6 {[%clk
0:00:57.5]} 43. Nb3 {[%clk 0:00:26.2]} 43... Rc6 {[%clk 0:00:52.3]} 44. b7
{[%clk 0:00:18.9]} 44... Bc7 {[%clk 0:00:44.6]} 45. f4 {[%clk 0:00:14.3]} 45...
Kxb7 {[%clk 0:00:41.9]} 46. Nca5+ {[%clk 0:00:12.4]} 46... Bxa5 {[%clk
0:00:40.4]} 47. Nxa5+ {[%clk 0:00:12.3]} 47... Kb6 {[%clk 0:00:39.4]} 48. Nxc6
{[%clk 0:00:11.6]} 48... Kxc6 {[%clk 0:00:39.3]} 49. fxe5 {[%clk 0:00:10.7]}
49... Nxe5+ {[%clk 0:00:39.2]} 50. Ke3 {[%clk 0:00:10.5]} 50... g5 {[%clk
0:00:36.1]} 51. g3 {[%clk 0:00:10.4]} 51... Kc5 {[%clk 0:00:33.1]} 52. h3 {[%clk
0:00:10.3]} 52... h5 {[%clk 0:00:29.7]} 53. h4 {[%clk 0:00:08.9]} 53... g4
{[%clk 0:00:28.6]} 54. Kf4 {[%clk 0:00:08.4]} 54... Nf7 {[%clk 0:00:24.7]} 55.
e5 {[%clk 0:00:06.6]} 55... Kd5 {[%clk 0:00:23.3]} 56. Ke3 {[%clk 0:00:05.3]}
56... Kxe5 {[%clk 0:00:22.6]} 57. Ke2 {[%clk 0:00:05.2]} 57... Ke4 {[%clk
0:00:21.8]} 58. Kf2 {[%clk 0:00:05.1]} 58... e5 {[%clk 0:00:20.6]} 59. Ke1
{[%clk 0:00:05]} 59... Kf3 {[%clk 0:00:19.5]} 60. Kf1 {[%clk 0:00:03.7]} 60...
Kxg3 {[%clk 0:00:19.4]} 61. Kg1 {[%clk 0:00:02.4]} 61... Kxh4 {[%clk 0:00:19.3]}
62. Kh2 {[%clk 0:00:01.6]} 62... e4 {[%clk 0:00:18.7]} 63. Kh1 {[%clk
0:00:01.5]} 63... Kh3 {[%clk 0:00:17.6]} 64. Kg1 {[%clk 0:00:00.5]} 64... g3
{[%clk 0:00:16.7]} 65. Kf1 {[%clk 0:00:00.4]} 65... g2+ {[%clk 0:00:15.5]} 66.
Kg1 {[%clk 0:00:00.3]} 66... e3 {[%clk 0:00:15]} 1/2-1/2

[Event "Live Chess"]
[Site "Chess.com"]
[Date "2023.05.20"]
[Round "-"]
[White "GEMdzq"]
[Black "LiamClery2020"]
[Result "1-0"]
[WhiteElo "2243"]
[BlackElo "2080"]
[TimeControl "300"]
[EndTime "12:05:57 PDT"]
[Termination "GEMdzq won by resignation"]

1. e4 {[%clk 0:04:57.7]} 1... Nf6 {[%clk 0:04:59]} 2. e5 {[%clk 0:04:56.2]} 2...
Nd5 {[%clk 0:04:58.2]} 3. d4 {[%clk 0:04:53.2]} 3... d6 {[%clk 0:04:57.4]} 4.
Bc4 {[%clk 0:04:47.9]} 4... Nb6 {[%clk 0:04:56]} 5. Bb3 {[%clk 0:04:46.8]} 5...
dxe5 {[%clk 0:04:54.6]} 6. dxe5 {[%clk 0:04:46.1]} 6... Qxd1+ {[%clk 0:04:53.5]}
7. Kxd1 {[%clk 0:04:46]} 7... Nc6 {[%clk 0:04:53.2]} 8. Nf3 {[%clk 0:04:44.7]}
8... Bg4 {[%clk 0:04:52.7]} 9. Bf4 {[%clk 0:04:43.3]} 9... O-O-O+ {[%clk
0:04:52.1]} 10. Kc1 {[%clk 0:04:37.7]} 10... e6 {[%clk 0:04:48.6]} 11. Nbd2
{[%clk 0:04:35.8]} 11... Bc5 {[%clk 0:04:46.9]} 12. Bg3 {[%clk 0:04:33]} 12...
a5 {[%clk 0:04:27.7]} 13. a4 {[%clk 0:04:30]} 13... Nd5 {[%clk 0:04:20.8]} 14.
c3 {[%clk 0:04:22.9]} 14... f6 {[%clk 0:04:13.3]} 15. Re1 {[%clk 0:04:19.2]}
15... fxe5 {[%clk 0:04:11.1]} 16. Nxe5 {[%clk 0:04:17.8]} 16... Nxe5 {[%clk
0:04:09.5]} 17. Rxe5 {[%clk 0:04:13.7]} 17... Rhf8 {[%clk 0:04:08.8]} 18. Ne4
{[%clk 0:04:12.1]} 18... Bb6 {[%clk 0:03:57.5]} 19. Rg5 {[%clk 0:03:42]} 19...
Bf5 {[%clk 0:03:54.6]} 20. Bc2 {[%clk 0:03:39.2]} 20... Bg6 {[%clk 0:03:50]} 21.
Be5 {[%clk 0:03:25.3]} 21... Bxf2 {[%clk 0:03:43.8]} 22. Nxf2 {[%clk 0:03:02.7]}
22... Rxf2 {[%clk 0:03:42.6]} 23. Bd1 {[%clk 0:02:51.5]} 23... Ne3 {[%clk
0:03:35.6]} 24. Bd4 {[%clk 0:02:34.4]} 24... Nxd1 {[%clk 0:03:27.4]} 25. Bxf2
{[%clk 0:02:31.6]} 25... Nxf2 {[%clk 0:03:27.3]} 26. b3 {[%clk 0:02:30.4]} 26...
Rd1+ {[%clk 0:03:17.6]} 27. Kb2 {[%clk 0:02:29]} 27... Rd2+ {[%clk 0:03:15.5]}
28. Ka3 {[%clk 0:02:25.2]} 28... Ne4 {[%clk 0:03:14.3]} 29. Rxa5 {[%clk
0:02:20.1]} 29... Nxc3 {[%clk 0:03:13.3]} 30. Ra8+ {[%clk 0:02:15.8]} 30... Kd7
{[%clk 0:03:12.3]} 31. Rg8 {[%clk 0:02:05.4]} 31... Rxg2 {[%clk 0:03:08.6]} 32.
Rxg7+ {[%clk 0:02:03.7]} 32... Kd6 {[%clk 0:03:06.8]} 33. Rc1 {[%clk 0:01:56.6]}
33... Nb1+ {[%clk 0:03:02]} 34. Rxb1 {[%clk 0:01:53.7]} 34... Bxb1 {[%clk
0:02:50.3]} 35. Rxg2 {[%clk 0:01:51.9]} 35... Bg6 {[%clk 0:02:50.2]} 36. Rd2+
{[%clk 0:01:47]} 36... Ke7 {[%clk 0:02:49.5]} 37. b4 {[%clk 0:01:45.1]} 37...
Be4 {[%clk 0:02:48.8]} 38. b5 {[%clk 0:01:42]} 38... c6 {[%clk 0:02:47.6]} 39.
Kb4 {[%clk 0:01:40.8]} 39... b6 {[%clk 0:02:45.6]} 40. bxc6 {[%clk 0:01:26]}
40... Bxc6 {[%clk 0:02:45.5]} 41. Rc2 {[%clk 0:01:24.6]} 41... Kd6 {[%clk
0:02:44.6]} 42. Rf2 {[%clk 0:01:19.8]} 42... e5 {[%clk 0:02:42.3]} 43. Rf7
{[%clk 0:01:16.7]} 43... h5 {[%clk 0:02:38.3]} 44. Rh7 {[%clk 0:01:15]} 44...
Bf3 {[%clk 0:02:36.5]} 45. Rh6+ {[%clk 0:01:12.5]} 45... Kc7 {[%clk 0:02:35.6]}
46. Re6 {[%clk 0:01:08.9]} 46... e4 {[%clk 0:02:30.8]} 47. Kc3 {[%clk
0:01:07.2]} 47... Bd1 {[%clk 0:02:28.4]} 48. Rxe4 {[%clk 0:01:04.8]} 48... Kc6
{[%clk 0:02:27.9]} 49. Kb4 {[%clk 0:01:01.6]} 49... Bf3 {[%clk 0:02:26.4]} 50.
Re6+ {[%clk 0:00:59.6]} 50... Kb7 {[%clk 0:02:26.1]} 51. Rf6 {[%clk 0:00:56.9]}
51... Bg4 {[%clk 0:02:24.3]} 52. Kb5 {[%clk 0:00:55.1]} 52... Be2+ {[%clk
0:02:22.9]} 53. Kb4 {[%clk 0:00:54.5]} 53... Bg4 {[%clk 0:02:22.1]} 54. Rg6
{[%clk 0:00:46.1]} 54... Ka6 {[%clk 0:02:20.4]} 55. a5 {[%clk 0:00:43.1]} 55...
Ka7 {[%clk 0:02:18.5]} 56. axb6+ {[%clk 0:00:41.6]} 1-0

[Event "Live Chess"]
[Site "Chess.com"]
[Date "2023.05.20"]
[Round "-"]
[White "manthanit"]
[Black "Ferrarifan27"]
[Result "0-1"]
[WhiteElo "945"]
[BlackElo "2103"]
[TimeControl "300"]
[EndTime "12:06:06 PDT"]
[Termination "Ferrarifan27 won by resignation"]

1. e4 {[%clk 0:04:59.2]} 1... e5 {[%clk 0:04:57.2]} 2. Nf3 {[%clk 0:04:58.2]}
2... Nc6 {[%clk 0:04:56.2]} 3. Bc4 {[%clk 0:04:57.7]} 3... Bc5 {[%clk
0:04:54.1]} 4. O-O {[%clk 0:04:55.8]} 4... d6 {[%clk 0:04:52.5]} 5. h3 {[%clk
0:04:54.7]} 5... Nf6 {[%clk 0:04:50.2]} 6. d3 {[%clk 0:04:53.9]} 6... O-O {[%clk
0:04:48.7]} 7. Bg5 {[%clk 0:04:52]} 7... h6 {[%clk 0:04:47]} 8. Bh4 {[%clk
0:04:51.1]} 8... Be6 {[%clk 0:04:42.9]} 9. Nc3 {[%clk 0:04:47.6]} 9... Bxc4
{[%clk 0:04:40.7]} 10. dxc4 {[%clk 0:04:46.5]} 10... g5 {[%clk 0:04:31.1]} 11.
Bg3 {[%clk 0:04:43.2]} 11... Nh5 {[%clk 0:04:26.9]} 12. Bh2 {[%clk 0:04:42]}
12... Nf4 {[%clk 0:04:21.6]} 13. Re1 {[%clk 0:04:35.4]} 13... f5 {[%clk
0:04:13.1]} 14. a3 {[%clk 0:04:30.3]} 14... fxe4 {[%clk 0:04:11.2]} 15. Rxe4
{[%clk 0:04:29]} 15... Nd4 {[%clk 0:04:02.7]} 16. Nd5 {[%clk 0:04:24.5]} 16...
Nxh3+ {[%clk 0:03:59.8]} 17. gxh3 {[%clk 0:04:15.2]} 17... Nxf3+ {[%clk
0:03:58.6]} 18. Kh1 {[%clk 0:04:01.6]} 18... Nxh2 {[%clk 0:03:57.2]} 19. Kxh2
{[%clk 0:04:00.2]} 19... Rxf2+ {[%clk 0:03:55.8]} 20. Kg1 {[%clk 0:03:58.8]}
20... Rd2+ {[%clk 0:03:53.3]} 0-1

[Event "Live Chess"]
[Site "Chess.com"]
[Date "2023.05.20"]
[Round "-"]
[White "bigedd"]
[Black "bristolunichess"]
[Result "0-1"]
[WhiteElo "729"]
[BlackElo "1776"]
[TimeControl "300"]
[EndTime "12:06:15 PDT"]
[Termination "bristolunichess won by resignation"]

1. e4 {[%clk 0:04:53.6]} 1... c5 {[%clk 0:04:57.9]} 2. Bc4 {[%clk 0:04:49.7]}
2... Nc6 {[%clk 0:04:56.9]} 3. Nf3 {[%clk 0:04:48.4]} 3... e6 {[%clk 0:04:50.6]}
4. c3 {[%clk 0:04:47.1]} 4... d5 {[%clk 0:04:49.1]} 5. d4 {[%clk 0:04:42.5]}
5... dxc4 {[%clk 0:04:45.9]} 6. d5 {[%clk 0:04:32.1]} 6... exd5 {[%clk
0:04:38.3]} 7. exd5 {[%clk 0:04:27.6]} 7... Nce7 {[%clk 0:04:36.3]} 8. d6 {[%clk
0:04:18]} 8... Ng6 {[%clk 0:04:31.6]} 9. Qe2+ {[%clk 0:04:10.4]} 9... Be6 {[%clk
0:04:29.7]} 10. Ng5 {[%clk 0:04:00.1]} 10... Bxd6 {[%clk 0:03:59.9]} 11. Nxe6
{[%clk 0:03:54.4]} 11... fxe6 {[%clk 0:03:59.8]} 12. Qxe6+ {[%clk 0:03:52.9]}
12... Qe7 {[%clk 0:03:55.4]} 13. Qxe7+ {[%clk 0:03:43.9]} 13... N8xe7 {[%clk
0:03:55.3]} 14. Bg5 {[%clk 0:03:39.6]} 14... O-O {[%clk 0:03:45]} 15. O-O {[%clk
0:03:33.9]} 15... Nf5 {[%clk 0:03:40.1]} 16. Rd1 {[%clk 0:03:30.1]} 16... Rae8
{[%clk 0:03:35.9]} 17. Nd2 {[%clk 0:03:23]} 17... Nf4 {[%clk 0:03:32.1]} 18. Nf3
{[%clk 0:03:12]} 18... Re2 {[%clk 0:03:12.3]} 19. Bxf4 {[%clk 0:03:02.5]} 19...
Bxf4 {[%clk 0:03:09.6]} 20. g3 {[%clk 0:02:56.9]} 20... Bh6 {[%clk 0:03:01.9]}
21. Re1 {[%clk 0:02:27.4]} 21... Rfe8 {[%clk 0:02:53.5]} 22. Rxe2 {[%clk
0:02:22.7]} 22... Rxe2 {[%clk 0:02:53.4]} 23. Re1 {[%clk 0:02:17.1]} 23... Rxe1+
{[%clk 0:02:48.7]} 24. Nxe1 {[%clk 0:02:15.5]} 24... Bc1 {[%clk 0:02:48.6]} 25.
b3 {[%clk 0:02:08.3]} 25... cxb3 {[%clk 0:02:37.9]} 26. axb3 {[%clk 0:02:06.5]}
26... a5 {[%clk 0:02:37.4]} 27. Nd3 {[%clk 0:02:03.7]} 27... Bd2 {[%clk
0:02:35.6]} 28. Nxc5 {[%clk 0:02:00.4]} 28... Bxc3 {[%clk 0:02:29.5]} 29. Nxb7
{[%clk 0:01:59.2]} 29... Nd4 {[%clk 0:02:27.7]} 30. Kf1 {[%clk 0:01:47.6]} 30...
Nxb3 {[%clk 0:02:26.8]} 31. Ke2 {[%clk 0:01:41.6]} 31... a4 {[%clk 0:02:24]} 32.
Nd6 {[%clk 0:01:35]} 32... a3 {[%clk 0:02:21.3]} 33. Nc4 {[%clk 0:01:33.7]}
33... a2 {[%clk 0:02:19.5]} 0-1

[Event "Live Chess"]
[Site "Chess.com"]
[Date "2023.05.20"]
[Round "-"]
[White "ReceptiveCamel"]
[Black "DerbyKnight"]
[Result "0-1"]
[WhiteElo "640"]
[BlackElo "1631"]
[TimeControl "300"]
[EndTime "12:06:34 PDT"]
[Termination "DerbyKnight won by resignation"]

1. e4 {[%clk 0:04:57.8]} 1... c6 {[%clk 0:04:57.6]} 2. Nc3 {[%clk 0:04:52.2]}
2... d5 {[%clk 0:04:57.5]} 3. exd5 {[%clk 0:04:50.1]} 3... cxd5 {[%clk
0:04:57.4]} 4. Qe2 {[%clk 0:04:47.7]} 4... Nc6 {[%clk 0:04:53]} 5. d4 {[%clk
0:04:44.7]} 5... Nxd4 {[%clk 0:04:43.5]} 6. Qe5 {[%clk 0:04:38.3]} 6... Nxc2+
{[%clk 0:04:39.3]} 7. Kd1 {[%clk 0:04:35.6]} 7... Nxa1 {[%clk 0:04:36.7]} 8.
Nxd5 {[%clk 0:04:33.8]} 8... e6 {[%clk 0:04:27.3]} 9. Bb5+ {[%clk 0:04:24.3]}
9... Bd7 {[%clk 0:04:12.3]} 10. Bxd7+ {[%clk 0:04:21]} 10... Qxd7 {[%clk
0:04:07.7]} 11. Qc7 {[%clk 0:04:10.9]} 11... Qxd5+ {[%clk 0:04:04.4]} 12. Ke2
{[%clk 0:04:08.4]} 0-1

[Event "Live Chess"]
[Site "Chess.com"]
[Date "2023.05.20"]
[Round "-"]
[White "Stanbad1"]
[Black "VovaOvchar1990"]
[Result "1-0"]
[WhiteElo "2417"]
[BlackElo "1220"]
[TimeControl "300"]
[EndTime "12:06:36 PDT"]
[Termination "Stanbad1 won by checkmate"]

1. d4 {[%clk 0:04:55.8]} 1... d5 {[%clk 0:04:58.2]} 2. Nc3 {[%clk 0:04:52.7]}
2... Nf6 {[%clk 0:04:53.3]} 3. Bf4 {[%clk 0:04:44.9]} 3... Nc6 {[%clk
0:04:50.7]} 4. Nb5 {[%clk 0:04:42.3]} 4... e5 {[%clk 0:04:11.5]} 5. Bxe5 {[%clk
0:04:40.2]} 5... Nxe5 {[%clk 0:04:09]} 6. dxe5 {[%clk 0:04:40.1]} 6... Ng4
{[%clk 0:03:53]} 7. Qxd5 {[%clk 0:04:35.4]} 7... Qxd5 {[%clk 0:03:47.8]} 8.
Nxc7+ {[%clk 0:04:33.9]} 8... Kd7 {[%clk 0:03:37.7]} 9. Nxd5 {[%clk 0:04:32.3]}
9... Nxe5 {[%clk 0:02:54.9]} 10. O-O-O {[%clk 0:04:22.5]} 10... Kc6 {[%clk
0:02:44.1]} 11. f3 {[%clk 0:04:11.6]} 11... Bc5 {[%clk 0:02:36.8]} 12. e4 {[%clk
0:04:08]} 12... Be6 {[%clk 0:02:30.4]} 13. a4 {[%clk 0:04:04.1]} 13... Rhd8
{[%clk 0:02:25.7]} 14. Bb5+ {[%clk 0:04:01.9]} 14... Kd6 {[%clk 0:02:19.5]} 15.
Nb6+ {[%clk 0:04:00.8]} 15... Kc7 {[%clk 0:02:16.1]} 16. Nxa8+ {[%clk
0:03:59.7]} 16... Rxa8 {[%clk 0:02:12.5]} 17. Ne2 {[%clk 0:03:59.3]} 17... a6
{[%clk 0:02:05.5]} 18. Bd3 {[%clk 0:03:57.3]} 18... b5 {[%clk 0:01:40.7]} 19.
Nc3 {[%clk 0:03:50.2]} 19... b4 {[%clk 0:01:34.3]} 20. Nd5+ {[%clk 0:03:48.2]}
20... Bxd5 {[%clk 0:01:21.8]} 21. exd5 {[%clk 0:03:48.1]} 21... Kd6 {[%clk
0:01:20.6]} 22. Be4 {[%clk 0:03:46.6]} 22... a5 {[%clk 0:01:14.8]} 23. b3 {[%clk
0:03:44.2]} 23... f6 {[%clk 0:01:13.2]} 24. Rhe1 {[%clk 0:03:42.3]} 24... g5
{[%clk 0:01:11.2]} 25. g3 {[%clk 0:03:40.1]} 25... h5 {[%clk 0:01:09.6]} 26. f4
{[%clk 0:03:38.4]} 26... gxf4 {[%clk 0:01:07.6]} 27. gxf4 {[%clk 0:03:38.3]}
27... Nd7 {[%clk 0:01:02.9]} 28. Bf5 {[%clk 0:03:36.4]} 28... Nf8 {[%clk
0:00:50.8]} 29. Re6+ {[%clk 0:03:29.1]} 29... Nxe6 {[%clk 0:00:47.1]} 30. dxe6+
{[%clk 0:03:29]} 30... Ke7 {[%clk 0:00:46.1]} 31. Rd7+ {[%clk 0:03:27.4]} 31...
Ke8 {[%clk 0:00:44.7]} 32. Rh7 {[%clk 0:03:26.7]} 32... Be3+ {[%clk 0:00:40.5]}
33. Kb1 {[%clk 0:03:25.5]} 33... Bxf4 {[%clk 0:00:37.9]} 34. Rh8+ {[%clk
0:03:24]} 34... Ke7 {[%clk 0:00:35.4]} 35. Rxa8 {[%clk 0:03:23.7]} 35... Bxh2
{[%clk 0:00:34.1]} 36. Ra7+ {[%clk 0:03:21.9]} 36... Ke8 {[%clk 0:00:31.5]} 37.
e7 {[%clk 0:03:21.4]} 37... Be5 {[%clk 0:00:29]} 38. Bg6# {[%clk 0:03:20.8]} 1-0